fUSD/lending_fUSD_20240801
["ID","MTS","AMOUNT","RATE_DAILY","PERIOD"]
[333832391,1722537068814,-2499.68,0.00024656,2]
[333832392,1722537068823,-244.48,0.00024658,4]
[333832393,1722537068833,-8526.18,0.00024658,4]
[333832394,1722537068843,-151.0,0.00024658,2]
[333832395,1722537068854,-250.49088,0.00024658,2]
[333832396,1722537068866,-761.854978,0.00024658,7]
[333832397,1722537068879,-761.854978,0.00024658,7]
[333832398,1722537068890,-761.854978,0.00024658,7]
[333832399,1722537068903,-761.854978,0.00024658,7]
[333832400,1722537068913,-761.854978,0.00024658,7]
[333832401,1722537068925,-761.854978,0.00024658,7]
[333832402,1722537068935,-761.854978,0.00024658,7]
[333832403,1722537068946,-761.854978,0.00024658,7]
[333832404,1722537068958,-761.854978,0.00024658,7]
[333832405,1722537068968,-761.854978,0.00024658,7]
[333832406,1722537068979,-761.854978,0.00024658,7]
[333832407,1722537068988,-761.854978,0.00024658,7]
[333832408,1722537068999,-761.854978,0.00024658,7]
[333832409,1722537069009,-761.854978,0.00024658,7]
[333832410,1722537069019,-761.854978,0.00024658,7]
[333832411,1722537069029,-761.854978,0.00024658,7]
[333832412,1722537069039,-761.854978,0.00024658,7]
[333832413,1722537069049,-761.854978,0.00024658,7]
[333832414,1722537069059,-761.854978,0.00024658,7]
[333832415,1722537069069,-761.854978,0.00024658,7]
[333832416,1722537069080,-160.64545593,0.0002466,2]
[333832417,1722537069091,-160.64545593,0.0002466,2]
[333832418,1722537069102,-160.64545593,0.0002466,2]
[333832419,1722537069114,-160.64545593,0.0002466,2]
[333832420,1722537069125,-160.64545593,0.0002466,2]
[333832421,1722537069135,-160.64545593,0.0002466,2]
[333832422,1722537069149,-160.64545593,0.0002466,2]
[333832423,1722537069159,-160.64545593,0.0002466,2]
[333832424,1722537069170,-160.64545593,0.0002466,2]
[333832425,1722537069181,-160.64545593,0.0002466,2]
[333832426,1722537069192,-160.64545593,0.0002466,2]
[333832427,1722537069203,-161.14,0.0002466,2]
[333832428,1722537069215,-385.62409423,0.0002466,2]
[333832429,1722537069225,-385.62409423,0.0002466,2]
[333832430,1722537069235,-385.62409423,0.0002466,2]
[333832431,1722537069245,-385.62409423,0.0002466,2]
[333832432,1722537069255,-385.62409423,0.0002466,2]
[333832433,1722537069265,-385.62409423,0.0002466,2]
[333832434,1722537069275,-385.62409423,0.0002466,2]
[333832436,1722537069285,-385.62409423,0.0002466,2]
[333832437,1722537069295,-385.62409423,0.0002466,2]
[333832438,1722537069305,-385.62409423,0.0002466,2]
[333832440,1722537069315,-385.62409423,0.0002466,2]
[333832441,1722537069325,-385.62409423,0.0002466,2]
[333832442,1722537069335,-385.62409423,0.0002466,2]
[333832443,1722537069344,-385.62409423,0.0002466,2]
[333832444,1722537069354,-385.62409423,0.0002466,2]
[333832445,1722537069364,-385.62409423,0.0002466,2]
[333832446,1722537069373,-385.62409423,0.0002466,2]
[333832447,1722537069383,-385.62409423,0.0002466,2]
[333832448,1722537069392,-385.62409423,0.0002466,2]
[333832449,1722537069404,-296.98411986,0.0002466,2]
[333832450,1722537069415,-296.98411986,0.0002466,2]
[333832451,1722537069424,-296.98411986,0.0002466,2]
[333832452,1722537069433,-296.98411986,0.0002466,2]
[333832453,1722537069443,-296.98411986,0.0002466,2]
[333832454,1722537069453,-296.98411986,0.0002466,2]
[333832455,1722537069463,-296.98411986,0.0002466,2]
[333832456,1722537069474,-296.98411986,0.0002466,2]
[333832457,1722537069483,-296.98411986,0.0002466,2]
[333832458,1722537069492,-296.98411986,0.0002466,2]
[333832459,1722537069503,-296.98411986,0.0002466,2]
[333832460,1722537069514,-296.98411986,0.0002466,2]
[333832461,1722537069524,-296.98411986,0.0002466,2]
[333832462,1722537069535,-296.98411986,0.0002466,2]
[333832463,1722537069546,-296.98411986,0.0002466,2]
[333832464,1722537069557,-296.98411986,0.0002466,2]
[333832465,1722537069567,-296.98411986,0.0002466,2]
[333832466,1722537069576,-296.98411986,0.0002466,2]
[333832467,1722537069586,-296.98411986,0.0002466,2]
[333832468,1722537069595,-297.48,0.0002466,2]
[333832469,1722537069607,-1188.01147945,0.0002466,2]
[333832470,1722537069618,-1188.01147945,0.0002466,2]
[333832471,1722537069629,-1188.01147945,0.0002466,2]
[333832472,1722537069639,-1188.01147945,0.0002466,2]
[333832473,1722537069653,-1188.01147945,0.0002466,2]
[333832474,1722537069664,-1188.01147945,0.0002466,2]
[333832475,1722537069673,-1188.01147945,0.0002466,2]
[333832476,1722537069684,-1188.01147945,0.0002466,2]
[333832477,1722537069694,-1188.01147945,0.0002466,2]
[333832478,1722537069704,-1188.01147945,0.0002466,2]
[333832479,1722537069714,-1188.01147945,0.0002466,2]
[333832480,1722537069724,-1188.01147945,0.0002466,2]
[333832481,1722537069734,-1188.01147945,0.0002466,2]
[333832482,1722537069745,-1188.01147945,0.0002466,2]
[333832483,1722537069756,-1188.01147945,0.0002466,2]
[333832484,1722537069765,-1188.01147945,0.0002466,2]
[333832485,1722537069775,-1188.01147945,0.0002466,2]
[333832486,1722537069785,-1188.01147945,0.0002466,2]
[333832487,1722537069795,-1188.01147945,0.0002466,2]
[333832488,1722537069805,-186.65449843,0.0002466,2]
[333832489,1722537069815,-186.65449843,0.0002466,2]
[333832491,1722537069825,-186.65449843,0.0002466,2]
[333832492,1722537069835,-186.65449843,0.0002466,2]
[333832494,1722537069845,-186.65449843,0.0002466,2]
[333832495,1722537069855,-186.65449843,0.0002466,2]
[333832496,1722537069865,-186.65449843,0.0002466,2]
[333832498,1722537069877,-186.65449843,0.0002466,2]
[333832499,1722537069887,-186.65449843,0.0002466,2]
[333832500,1722537069900,-186.65449843,0.0002466,2]
[333832501,1722537069911,-186.65449843,0.0002466,2]
[333832502,1722537069920,-186.65449843,0.0002466,2]
[333832503,1722537069930,-186.65449843,0.0002466,2]
[333832504,1722537069940,-186.65449843,0.0002466,2]
[333832505,1722537069950,-186.65449843,0.0002466,2]
[333832506,1722537069962,-186.65449843,0.0002466,2]
[333832507,1722537069972,-186.65449843,0.0002466,2]
[333832508,1722537069982,-186.65449843,0.0002466,2]
[333832509,1722537069992,-186.65449843,0.0002466,2]
[333832510,1722537070002,-187.15,0.0002466,2]
[333832511,1722537070013,-746.69299371,0.0002466,2]
[333832512,1722537070024,-105.2349176,0.0002466,2]
[333832514,1722537071755,-169.10184309,9.962e-05,2]
[333832515,1722537071765,-159.749043,0.00011,2]
[333832516,1722537071775,-450.0,0.0001211,2]
[333832517,1722537071785,-159.749043,0.00013,2]
[333832518,1722537071795,-2273.29900242,0.00013479,2]
[333832519,1722537071807,-417.90491,0.00013479,2]
[333832520,1722537071818,-1048.0,0.00013479,2]
[333832526,1722537333757,497.1113,9.862e-05,2]
[333832527,1722537374515,111.05752274,9.862e-05,2]
[333832528,1722537374542,116.51604483,9.862e-05,2]
[333832537,1722537489128,227.57356757,9.862e-05,2]
[333832538,1722537525886,152.27,0.0001337,30]
[333832576,1722538123602,152.27,0.0001337,30]
[333832584,1722538169255,-472.9,9.941e-05,2]
[333832585,1722538169284,-300.0,9.999e-05,2]
[333832586,1722538169316,-279.99953119,0.0001,2]
[333832587,1722538169354,-372.9900095,0.0001,2]
[333832588,1722538169385,-519.62430261,0.0001,2]
[333832589,1722538169413,-160.28521908,0.0001,2]
[333832590,1722538169446,-1052.89953119,0.0001,2]
[333832591,1722538169480,-839.64738904,0.0001,2]
[333832592,1722538169919,-155.34577198,0.0001,2]
[333832593,1722538169957,-57.90637017,0.0001,2]
[333832594,1722538169993,-1052.89953119,0.0001,2]
[333832595,1722538170026,-1052.89953119,0.0001,2]
[333832596,1722538170057,-1052.89953119,0.0001,2]
[333832597,1722538170088,-1052.89953119,0.0001,2]
[333832598,1722538170119,-1052.89953119,0.0001,2]
[333832599,1722538194270,-921.59138925,0.0001,2]
[333832607,1722538232229,-865.46028817,0.0001,2]
[333832608,1722538232245,-159.82091919,0.0001,2]
[333832609,1722538232254,-210.80539627,0.0001,2]
[333832610,1722538232266,-181.66385154,0.0001,2]
[333832611,1722538232275,-47.709833,0.0001,2]
[333832612,1722538232288,-365.05646726,0.0001,2]
[333832613,1722538232298,-150.0,0.0001074,2]
[333832614,1722538232309,-56.56294173,0.0001078,2]
[333832615,1722538232321,-2066.72018457,0.0001078,2]
[333832616,1722538232334,-463.7261737,0.0001078,2]
[333832617,1722538232345,-500.0,0.0001089,2]
[333832618,1722538232354,-36.2738263,0.0001089,2]
[333832619,1722538232366,-697.11121979,0.0001089,2]
[333832620,1722538232378,-153.18785391,0.0001089,2]
[333832621,1722538232387,-648.39214609,0.00010999,2]
[333832622,1722538232399,-5523.61196047,0.00010999,2]
[333832623,1722538232410,-669.94125223,0.00010999,2]
[333832624,1722538232425,-3795.86506334,0.00010999,2]
[333832625,1722538232436,-118327.90826476,0.00010999,2]
[333832626,1722538232446,-12054.99549992,0.00011005,2]
[333832627,1722538232461,-307.8334,0.00011005,2]
[333832628,1722538232472,-3449.79040008,0.00011005,2]
[333832629,1722538232482,-219.71204174,0.00011086,2]
[333832630,1722538232494,-287.85035826,0.00011086,2]
[333832631,1722538232504,-394.94360935,0.00011105,2]
[333832632,1722538232516,-1009.70695675,0.00011105,2]
[333832633,1722538232526,-484.69898026,0.00011105,2]
[333832634,1722538232536,-649.20351135,0.00011105,2]
[333832635,1722538232547,-347.32373286,0.00011105,2]
[333832636,1722538232557,-388.06401145,0.00011105,2]
[333832637,1722538232566,-605.74081612,0.00011105,2]
[333832638,1722538232681,-532.20611665,0.00011105,2]
[333832639,1722538232691,-268.59705837,0.00011105,2]
[333832640,1722538232700,-435.23976542,0.00011105,2]
[333832641,1722538232710,-2487.11883117,0.00011105,2]
[333832642,1722538232721,-351.31652958,0.00011105,2]
[333832644,1722538232731,-1658.08121769,0.00011105,2]
[333832653,1722538238168,-155.0,0.0001,2]
[333832655,1722538238182,-313.50164004,0.0001,2]
[333832663,1722538238287,-736.22582865,0.0001,2]
[333832665,1722538238299,-2814.39649979,0.00011105,2]
[333832667,1722538238312,-203.20879356,0.00011105,2]
[333832670,1722538238329,-265.17493776,0.00011105,2]
[333832672,1722538238341,-218.82295418,0.00011105,2]
[333832674,1722538238352,-359.03203292,0.00011105,2]
[333832675,1722538238363,-667.15174559,0.00011105,2]
[333832677,1722538238375,-531.73631271,0.00011105,2]
[333832679,1722538238386,-307.33927082,0.00011105,2]
[333832681,1722538238397,-530.11158353,0.00011105,2]
[333832683,1722538238410,-1163.382,0.00011105,2]
[333832685,1722538238428,-4070.08297907,0.00011105,2]
[333832687,1722538238444,-1849.01762945,0.00011105,2]
[333832689,1722538238457,-7855.36798635,0.00011105,2]
[333832691,1722538238468,-155.0,0.00011161,2]
[333832693,1722538238478,-155.0,0.00011161,2]
[333832694,1722538238488,-6834.63201365,0.00011186,2]
[333832696,1722538238500,-668.26362144,0.00011186,2]
[333832697,1722538238512,-4003.853329,0.00011186,2]
[333832821,1722538240357,-795.0000001,0.00011186,2]
[333832822,1722538240370,-311.21120683,0.00011186,2]
[333832823,1722538240382,-7991.34343518,0.00011186,2]
[333832824,1722538240394,-2032.32288714,0.00011186,2]
[333832825,1722538240404,-25298.4632004,0.00011186,2]
[333832826,1722538240414,-12080.14,0.00011206,2]
[333832827,1722538240424,-499.99,0.00011206,2]
[333832828,1722538240436,-277.79109974,0.00011324,2]
[333832829,1722538240448,-31.18506259,0.00011324,2]
[333832830,1722538240457,-250.0,0.0001186,2]
[333832831,1722538240467,-38.61493741,0.0001186,2]
[333832832,1722538240478,-111.38506259,0.0001186,2]
[333832833,1722538240488,-23900.0,0.00011862,2]
[333832834,1722538240498,-250.0,0.00011891,2]
[333832835,1722538240508,-499.5,0.00011906,2]
[333832836,1722538240517,-5398.55869267,0.00011959,2]
[333832837,1722538240527,-550.0,0.00012,2]
[333832838,1722538240537,-200.0,0.00012051,2]
[333832839,1722538240547,-947.72324924,0.00012121,2]
[333832840,1722538240556,-472.9,0.00012205,2]
[333832841,1722538240568,-400.0,0.00012567,2]
[333832842,1722538240578,-500.0,0.00012706,2]
[333832843,1722538240589,-500.0,0.00012715,2]
[333832844,1722538240600,-500.0,0.00012724,2]
[333832845,1722538240609,-500.0,0.00012733,2]
[333832846,1722538240619,-500.0,0.00012742,2]
[333832847,1722538240630,-1621.96390599,0.00012749,2]
[333832848,1722538240639,-500.0,0.0001275,2]
[333832849,1722538240650,-500.0,0.00012759,2]
[333832850,1722538240661,-500.0,0.00012768,2]
[333832851,1722538240671,-500.0,0.00012777,2]
[333832852,1722538240684,-500.0,0.00012786,2]
[333832853,1722538240694,-500.0,0.00012794,2]
[333832854,1722538240703,-500.0,0.00012803,2]
[333832855,1722538240712,-500.0,0.00012812,2]
[333832856,1722538240721,-500.0,0.00012821,2]
[333832857,1722538240731,-500.0,0.0001283,2]
[333832858,1722538240741,-500.0,0.00012838,2]
[333832859,1722538240751,-500.0,0.00012847,2]
[333832860,1722538240761,-2000.0,0.00013,2]
[333832861,1722538240771,-155.0,0.00013125,2]
[333832862,1722538240783,-1296.95622263,0.00013132,2]
[333832863,1722538240796,-686.31468402,0.00013133,2]
[333832864,1722538240807,-1049.57124552,0.00013199,2]
[333832865,1722538240817,-1049.57124552,0.00013199,2]
[333832866,1722538240827,-357.09487431,0.0001331,2]
[333832867,1722538240837,-170.34699346,0.0001337,2]
[333832868,1722538240847,-299.71268725,0.0001337,2]
[333832869,1722538240857,-340.68338463,0.0001337,4]
[333832870,1722538240867,-449.14284782,0.0001337,2]
[333832871,1722538240877,-188.60979296,0.00013378,2]
[333832872,1722538240886,-349.35447946,0.00013398,2]
[333832873,1722538240897,-6852.30824834,0.0001346,2]
[333832874,1722538241051,-1647.69175166,0.0001346,2]
[333832875,1722538241061,-362.3875606,0.00013479,2]
[333832876,1722538241071,-454.12693481,0.00013499,2]
[333832877,1722538241082,-365.36537875,0.00013499,2]
[333832878,1722538241092,-454.12693481,0.00013499,2]
[333832879,1722538241104,-2899.32663442,0.00013579,2]
[333832880,1722538241116,-314.81539748,0.00013579,2]
[333832881,1722538241129,-500.54994624,0.00013579,2]
[333832882,1722538241203,-15240.96322548,0.00013579,2]
[333832883,1722538241229,-355.72425126,0.00013579,2]
[333832884,1722538241241,-550.1564575,0.00013579,2]
[333832885,1722538242019,-429.15446819,0.0001,2]
[333832886,1722538242032,-19.98837963,0.0001,2]
[333832887,1722538242044,-340.68338463,0.0001,4]
[333832888,1722538242053,-15830.60744044,0.00013579,2]
[333832889,1722538242063,-3203.44342936,0.000136,2]
[333832890,1722538242073,-5321.7841887,0.00013698,2]
[333832891,1722538242083,-3400.91875942,0.00013698,2]
[333832892,1722538242094,-5321.7841887,0.00013698,2]
[333832893,1722538242105,-10524.20000003,0.00013698,2]
[333832894,1722538242117,-3079.05538157,0.00013698,2]
[333832895,1722538242128,-200.0,0.00013699,2]
[333832896,1722538242137,-500.0,0.00013699,2]
[333832897,1722538242147,-345.78,0.00013699,2]
[333832898,1722538242156,-2751.0,0.00013699,2]
[333832899,1722538242166,-5000.0,0.00013699,2]
[333832900,1722538242176,-5000.0,0.00013699,2]
[333832901,1722538242190,-4763.0301914,0.000137,2]
[333832903,1722538242200,-1581.0,0.00013755,2]
[333832904,1722538242210,-1925.0,0.00013755,2]
[333832905,1722538242220,-621.0,0.00013755,2]
[333832907,1722538242230,-1255.0,0.00013755,2]
[333832909,1722538242244,-1135.0,0.00013755,2]
[333832911,1722538242254,-445.0,0.00013755,2]
[333832913,1722538242264,-450.0,0.00013755,2]
[333832915,1722538242273,-811.0,0.00013755,2]
[333832917,1722538242284,-286.765,0.00013755,2]
[333832919,1722538242295,-164.325,0.00013755,2]
[333832921,1722538242304,-1995.0,0.00013755,2]
[333832923,1722538242315,-583.367,0.00013755,2]
[333832925,1722538242324,-5691.0,0.00013755,2]
[333832927,1722538242334,-1178.0,0.00013755,2]
[333832929,1722538242344,-252.351,0.00013755,2]
[333832931,1722538242354,-1110.081,0.00013755,2]
[333832933,1722538242363,-33225.0,0.00013761,2]
[333832935,1722538242373,-200.0,0.00013773,2]
[333832937,1722538242383,-10441.95301441,0.00013797,2]
[333832939,1722538242392,-2727.16525437,0.00013799,2]
[333832941,1722538242401,-2727.16525437,0.00013799,2]
[333832943,1722538242411,-9722.4317,0.000138,2]
[333832945,1722538242420,-220603.7821,0.000138,2]
[333832947,1722538242432,-22223.2201,0.000138,2]
[333832949,1722538242442,-202646.903593,0.000138,3]
[333832951,1722538242452,-1175.68290634,0.00013889,2]
[333832953,1722538242462,-67548.9678644,0.0001389,3]
[333832955,1722538242472,-719.24573666,0.00013896,2]
[333832956,1722538242482,-959.75173635,0.00013899,2]
[333832957,1722538242492,-1183.81771126,0.00013899,2]
[333832958,1722538242502,-273955.908056,0.000139,3]
[333832959,1722538242511,-1926.73701932,0.00013979,2]
[333832960,1722538242521,-722.68329662,0.00013989,2]
[333832961,1722538242531,-628.0054999,0.00013996,2]
[333832962,1722538242540,-600.14164396,0.00013996,2]
[333832963,1722538242550,-1112.24767944,0.00013999,2]
[333832964,1722538242559,-555.0,0.00013999,2]
[333832965,1722538242569,-987.0,0.00014,2]
[333832966,1722538242579,-600.0,0.00014,2]
[333832967,1722538242588,-1027.67097405,0.00014086,2]
[333832969,1722538242597,-379.95855132,0.00014086,2]
[333832971,1722538242608,-155.0,0.00014105,2]
[333832973,1722538242618,-236.10516886,0.00014105,2]
[333832975,1722538242628,-327.928426,0.00014105,2]
[333832977,1722538242638,-155.0,0.00014105,2]
[333832979,1722538242647,-270.28818504,0.00014105,2]
[333832981,1722538242659,-400.0,0.00014138,2]
[333832983,1722538242670,-284.23372885,0.00014261,2]
[333832986,1722538242684,-276.84317193,0.00014261,2]
[333832988,1722538242694,-312.5891594,0.00014261,2]
[333832990,1722538242703,-367.51291896,0.00014261,2]
[333832992,1722538242713,-155.0,0.00014261,2]
[333832994,1722538242723,-166.65761377,0.00014261,2]
[333832996,1722538242733,-155.0,0.00014261,2]
[333832998,1722538242744,-164.23596765,0.00014261,2]
[333833000,1722538242754,-528.40182091,0.00014283,2]
[333833002,1722538242765,-327.52579378,0.00014283,2]
[333833004,1722538242775,-400.0,0.00014283,2]
[333833006,1722538242786,-158.84273734,0.00014283,2]
[333833009,1722538242797,-159.44788772,0.00014283,2]
[333833011,1722538242807,-210.84776497,0.00014283,2]
[333833013,1722538242818,-174.64661664,0.00014283,2]
[333833015,1722538242828,-155.0,0.0001443,2]
[333833017,1722538242839,-206.56189729,0.0001443,2]
[333833019,1722538242850,-155.0,0.0001443,2]
[333833021,1722538242862,-206.56189729,0.0001443,2]
[333833024,1722538242873,-400.85725149,0.0001443,2]
[333833026,1722538242883,-155.0,0.0001443,2]
[333833029,1722538242892,-155.0,0.00014451,2]
[333833030,1722538242901,-472.9,0.00014469,2]
[333833033,1722538242911,-34244.488507,0.00014489,3]
[333833036,1722538242920,-33774.4839322,0.00014499,3]
[333833038,1722538242931,-438.20136165,0.00014519,2]
[333833041,1722538242940,-281.48530578,0.00014519,2]
[333833043,1722538242951,-328.53616784,0.00014519,2]
[333833046,1722538242960,-2345.1652,0.00014592,2]
[333833048,1722538242969,-155.0,0.00014899,2]
[333833050,1722538242979,-710.55927253,0.00014899,2]
[333833052,1722538242988,-161.71587683,0.000149,2]
[333833055,1722538242998,-34244.488507,0.00014949,3]
[333833058,1722538243007,-33774.4839322,0.00014958,3]
[333833061,1722538243017,-34244.488507,0.0001498,3]
[333833066,1722538243027,-1256.27829447,0.00014988,2]
[333833070,1722538243036,-33774.4839322,0.0001499,3]
[333833073,1722538243046,-34244.488507,0.0001499,3]
[333833077,1722538243055,-155.0,0.00014999,2]
[333833080,1722538243065,-50853.36089351,0.00015,2]
[333833082,1722538243076,-20021.96435556,0.00015,7]
[333833084,1722538243086,-168.12975198,0.00015,2]
[333833087,1722538243095,-155.0,0.00015,2]
[333833089,1722538243107,-1012.48,0.00015,2]
[333833091,1722538243117,-305.2,0.00015,2]
[333833093,1722538243127,-300.0,0.00015068,2]
[333833095,1722538243136,-400.0,0.00015142,2]
[333833097,1722538243146,-1436.56955204,0.00015369,2]
[333833099,1722538243155,-300.0,0.00015369,2]
[333833101,1722538243165,-400.0,0.00015709,2]
[333833103,1722538243175,-167.0,0.00015831,2]
[333833105,1722538243186,-476.4573429,0.00015897,2]
[333833107,1722538243196,-34244.488507,0.00015938,3]
[333833109,1722538243205,-33774.4839322,0.00015949,3]
[333833111,1722538243215,-10441.95301441,0.00015986,2]
[333833113,1722538243226,-34244.488507,0.00015989,3]
[333833115,1722538243240,-155.0,0.00015999,2]
[333833117,1722538243250,-650.0,0.00016,2]
[333833119,1722538243259,-2677.494958,0.00016,2]
[333833121,1722538243269,-530.53203882,0.00016033,2]
[333833123,1722538243278,-155.0,0.00016033,2]
[333833125,1722538243287,-1002.48431709,0.00016033,2]
[333833127,1722538243296,-9999.99,0.00016116,2]
[333833129,1722538243306,-204.12318885,0.00016159,2]
[333833131,1722538243317,-33774.4839322,0.00016203,3]
[333833133,1722538243326,-34244.488507,0.00016203,3]
[333833135,1722538243335,-1654.04021039,0.00016232,2]
[333833137,1722538243345,-1012.48,0.0001631,2]
[333833139,1722538243355,-260.0,0.00016338,2]
[333833141,1722538243364,-536.95660692,0.00016338,2]
[333833143,1722538243374,-167.0,0.00016354,2]
[333833145,1722538243383,-300.0,0.00016438,2]
[333833147,1722538243392,-4059.16222452,0.000165,2]
[333833149,1722538243402,-161.71587677,0.00016567,2]
[333833151,1722538243411,-305.2,0.00016705,2]
[333833153,1722538243420,-216.69,0.00016712,2]
[333833155,1722538243432,-1000.0,0.00016732,2]
[333833157,1722538243442,-472.9,0.00016733,2]
[333833158,1722538243451,-1135.0,0.00016755,2]
[333833160,1722538243460,-811.0,0.00016755,2]
[333833162,1722538243470,-150.0,0.00016755,2]
[333833164,1722538243480,-761.0,0.00016787,2]
[333833166,1722538243490,-167.0,0.00016876,2]
[333833208,1722538243892,-155.0,0.0001688,2]
[333833210,1722538243902,-600.0,0.0001692,2]
[333833212,1722538243913,-411.37788537,0.00016928,2]
[333833214,1722538243923,-376.39530055,0.00016934,2]
[333833215,1722538243933,-34244.488507,0.00016954,3]
[333833217,1722538243942,-34244.488507,0.00016957,3]
[333833219,1722538243951,-33774.4839322,0.00016964,3]
[333833221,1722538243961,-67548.9678644,0.00016966,3]
[333833223,1722538243971,-34244.488507,0.00016966,3]
[333833225,1722538243980,-376.39530055,0.0001708,2]
[333833227,1722538243989,-411.37788537,0.00017221,2]
[333833229,1722538243999,-400.0,0.0001728,2]
[333833231,1722538244009,-167.0,0.00017399,2]
[333833233,1722538244019,-411.37788537,0.000174,2]
[333833235,1722538244028,-376.39530055,0.00017512,2]
[333833237,1722538244040,-411.37788537,0.00017571,2]
[333833239,1722538244050,-376.39530055,0.00017597,2]
[333833242,1722538244059,-1012.48,0.0001762,2]
[333833244,1722538244070,-376.39530055,0.0001781,2]
[333833246,1722538244080,-150.0,0.0001782,2]
[333833248,1722538244090,-157.95458,0.0001782,2]
[333833250,1722538244101,-167.0,0.00017921,2]
[333833252,1722538244111,-411.37788537,0.00017983,2]
[333833254,1722538244121,-675.50888577,0.00018,2]
[333833256,1722538244131,-155.0,0.00018,2]
[333833259,1722538244141,-1233.20491262,0.00018,2]
[333833261,1722538244153,-700.0,0.00018,2]
[333833263,1722538244163,-161.71587677,0.00018233,2]
[333833265,1722538244172,-411.37788537,0.00018243,2]
[333833267,1722538244184,-376.39530055,0.00018314,2]
[333833269,1722538244195,-607.658571,0.0001841,2]
[333833271,1722538244204,-167.0,0.00018444,2]
[333833273,1722538244214,-411.37788537,0.00018487,2]
[333833275,1722538244224,-376.39530055,0.00018627,2]
[333833277,1722538244233,-200.0,0.00018679,2]
[333833279,1722538244246,-226.0,0.000187,2]
[333833281,1722538244255,-411.37788537,0.00018712,2]
[333833283,1722538244265,-376.39530055,0.00018817,2]
[333833285,1722538244276,-1000.0,0.00018824,2]
[333833287,1722538244286,-400.0,0.00018851,2]
[333833289,1722538244296,-800.0,0.00018892,2]
[333833292,1722538244305,-6000.0,0.000189,2]
[333833294,1722538244315,-1000.0,0.000189,2]
[333833296,1722538244325,-1012.48,0.0001893,2]
[333833298,1722538244334,-472.9,0.00018997,2]
[333833300,1722538244343,-247.2293518,0.00018999,2]
[333833302,1722538244353,-155.0,0.00019,2]
[333833304,1722538244363,-155.0,0.00019,2]
[333833306,1722538244372,-155.50485476,0.00019,2]
[333833308,1722538244381,-1110.61227134,0.00019026,2]
[333833310,1722538244392,-376.39530055,0.00019027,2]
[333833312,1722538244402,-411.37788537,0.00019093,2]
[333833314,1722538244411,-411.37788537,0.00019185,2]
[333833316,1722538244421,-376.39530055,0.00019233,2]
[333833318,1722538244434,-376.39530055,0.0001956,2]
[333833320,1722538244445,-411.37788537,0.00019584,2]
[333833322,1722538244454,-151.815,0.00019755,2]
[333833324,1722538244464,-150.0,0.00019755,2]
[333833326,1722538244473,-411.37788537,0.00019777,2]
[333833328,1722538244486,-376.39530055,0.00019834,2]
[333833330,1722538244496,-161.71587677,0.000199,2]
[333833332,1722538244506,-33774.4839322,0.0001998,4]
[333833334,1722538244516,-500.0,0.00019999,2]
[333833336,1722538244526,-155.0,0.0002,2]
[333833338,1722538244535,-14482.34591705,0.0002,2]
[333833340,1722538244545,-156.34026941,0.0002,2]
[333833342,1722538244555,-309.98845478,0.0002,2]
[333833344,1722538244565,-845.16637717,0.0002,2]
[333833346,1722538244574,-307.55575028,0.0002,2]
[333833348,1722538244584,-3196.63150284,0.0002,2]
[333833350,1722538244594,-1282.3416809,0.0002,2]
[333833353,1722538244603,-494.0,0.0002,2]
[333833355,1722538244612,-150.0,0.0002,2]
[333833357,1722538244622,-1749.0,0.0002,2]
[333833359,1722538244632,-941.0,0.0002,2]
[333833361,1722538244642,-192.0,0.0002,2]
[333833363,1722538244652,-750.0,0.0002,2]
[333833365,1722538244662,-2000.0,0.0002,2]
[333833367,1722538244671,-2000.0,0.0002001,2]
[333833369,1722538244681,-2000.0,0.0002002,2]
[333833371,1722538244694,-33774.4839322,0.0002002,4]
[333833372,1722538244703,-3739.149292,0.0002003,2]
[333833374,1722538244713,-376.39530055,0.00020089,2]
[333833376,1722538244722,-500.0,0.00020098,2]
[333833378,1722538244731,-500.0,0.00020106,2]